fUSD/lending_fUSD_20260528
["ID","MTS","AMOUNT","RATE_DAILY","PERIOD"]
[423231333,1779963043000,-157.03,0.0002514,30]
[423231337,1779963043000,-200.0,0.00025562,2]
[423231336,1779963043000,-245.61,0.000255,7]
[423231341,1779963043000,-2781.82699784,0.00025562,2]
[423231344,1779963043000,-10618.88800289,0.000256,2]
[423231342,1779963043000,-200.0,0.00025562,2]
[423231352,1779963043000,-219.76345652,0.00026,2]
[423231345,1779963043000,-206.84,0.00025825,2]
[423231353,1779963043000,-550.0,0.00026,2]
[423231346,1779963043000,-150.0,0.00025936,2]
[423231347,1779963043000,-150.0,0.00025936,2]
[423231348,1779963043000,-150.0,0.00025936,2]
[423231351,1779963043000,-4591.64384435,0.00026,2]
[423231350,1779963043000,-609.99350778,0.0002599,2]
[423231306,1779963043000,-21796.10948775,0.00025,2]
[423231328,1779963043000,-2682.57183977,0.00025014,2]
[423231340,1779963043000,-200.0,0.00025562,2]
[423231343,1779963043000,-12774.14957409,0.00025562,2]
[423231349,1779963043000,-150.0,0.00025936,2]
[423231339,1779963043000,-1910.18787185,0.00025562,2]
[423231303,1779963043000,-540.0,0.00025,2]
[423231309,1779963043000,-169.8000364,0.00025,2]
[423231310,1779963043000,-87461.3223672,0.00025,2]
[423231316,1779963043000,-374.46,0.00025,2]
[423231312,1779963043000,-189.53,0.00025,2]
[423231315,1779963043000,-374.46,0.00025,2]
[423231311,1779963043000,-477685.48981418,0.00025,2]
[423231313,1779963043000,-374.46,0.00025,2]
[423231318,1779963043000,-374.46,0.00025,2]
[423231314,1779963043000,-374.46,0.00025,2]
[423231327,1779963043000,-379.1632941,0.00025014,2]
[423231322,1779963043000,-374.46,0.00025,2]
[423231320,1779963043000,-374.46,0.00025,2]
[423231325,1779963043000,-1842.0326633,0.00025014,2]
[423231321,1779963043000,-374.46,0.00025,2]
[423231319,1779963043000,-374.46,0.00025,2]
[423231323,1779963043000,-200.0,0.00025014,2]
[423231329,1779963043000,-200.0,0.00025014,2]
[423231326,1779963043000,-200.0,0.00025014,2]
[423231324,1779963043000,-225.18697532,0.00025014,2]
[423231317,1779963043000,-374.46,0.00025,2]
[423231392,1779963044000,-1272.0,0.00026921,2]
[423231383,1779963044000,-336.34,0.00026737,15]
[423231389,1779963044000,-928.0,0.00026921,2]
[423231397,1779963044000,-2584.1567,0.0002701,2]
[423231399,1779963044000,-5162.64,0.00027154,7]
[423231388,1779963044000,-150.0,0.00026921,2]
[423231382,1779963044000,-438.0,0.00026682,2]
[423231386,1779963044000,-200.0,0.00026825,2]
[423231384,1779963044000,-3637.0,0.00026791,2]
[423231381,1779963044000,-209.27699021,0.00026681,2]
[423231396,1779963044000,-2000.0,0.00027,2]
[423231387,1779963044000,-151.0,0.000269,2]
[423231398,1779963044000,-200.0,0.00027093,2]
[423231414,1779963044000,-194.0601426,0.00027397,30]
[423231393,1779963044000,-525.0,0.00026921,2]
[423231394,1779963044000,-1225.0,0.00026921,2]
[423231401,1779963044000,-260.4103811,0.00027206,2]
[423231402,1779963044000,-163.57588558,0.00027221,2]
[423231403,1779963044000,-177.38732645,0.00027294,2]
[423231404,1779963044000,-245.61,0.000273,7]
[423231400,1779963044000,-200.0,0.00027206,2]
[423231413,1779963044000,-199.78110463,0.00027397,30]
[423231408,1779963044000,-4178.98740951,0.0002739,2]
[423231405,1779963044000,-180.84321921,0.000273,30]
[423231415,1779963044000,-1500.0,0.00027397,2]
[423231385,1779963044000,-150.0,0.000268,30]
[423231395,1779963044000,-500.0,0.00026948,2]
[423231390,1779963044000,-3549.0,0.00026921,2]
[423231354,1779963044000,-500.0,0.00026,2]
[423231380,1779963044000,-2000.0,0.00026667,7]
[423231355,1779963044000,-215.50460005,0.00026,7]
[423231366,1779963044000,-252.23575488,0.0002611,2]
[423231365,1779963044000,-2052.43152934,0.0002611,2]
[423231357,1779963044000,-200.0,0.00026036,2]
[423231411,1779963044000,-239.09111606,0.00027397,7]
[423231362,1779963044000,-419.0,0.000261,2]
[423231358,1779963044000,-200.0,0.00026036,2]
[423231364,1779963044000,-242.15909246,0.0002611,2]
[423231359,1779963044000,-4799.0,0.000261,2]
[423231356,1779963044000,-500.0,0.00026028,7]
[423231363,1779963044000,-200.0,0.0002611,2]
[423231360,1779963044000,-481.80495749,0.000261,2]
[423231391,1779963044000,-1356.0,0.00026921,2]
[423231361,1779963044000,-299.0,0.000261,2]
[423231369,1779963044000,-2820.4,0.00026296,2]
[423231368,1779963044000,-8850.08047434,0.0002611,2]
[423231378,1779963044000,-251.11897888,0.00026658,2]
[423231370,1779963044000,-200.0,0.00026296,2]
[423231371,1779963044000,-161.96751492,0.00026296,2]
[423231372,1779963044000,-27914.91476775,0.000264,2]
[423231377,1779963044000,-200.0,0.00026658,2]
[423231375,1779963044000,-621.78829552,0.00026656,2]
[423231374,1779963044000,-1354.11585035,0.0002656,4]
[423231376,1779963044000,-187.7004121,0.00026656,2]
[423231373,1779963044000,-200.0,0.00026559,2]
[423231379,1779963044000,-2991.49051684,0.00026658,2]
[423231367,1779963044000,-2884.75459676,0.0002611,2]
[423231407,1779963044000,-266.79,0.00027389,2]
[423231406,1779963044000,-357.0,0.00027381,2]
[423231416,1779963044000,-188.59,0.00027397,8]
[423231443,1779963044000,-153.03,0.00027598,7]
[423231444,1779963044000,-153.0,0.00027598,7]
[423231447,1779963044000,-153.0,0.00027646,30]
[423231448,1779963044000,-153.03,0.00027695,2]
[423231454,1779963044000,-591.42,0.00027732,2]
[423231453,1779963044000,-604.57,0.00027732,2]
[423231455,1779963044000,-1732.35,0.00027732,2]
[423231451,1779963044000,-1464.91,0.00027711,7]
[423231452,1779963044000,-1731.85,0.00027732,2]
[423231449,1779963044000,-153.0,0.00027695,2]
[423231450,1779963044000,-1463.94,0.00027711,7]
[423231467,1779963044000,-153.03,0.00027888,7]
[423231458,1779963044000,-200.0,0.00027754,2]
[423231456,1779963044000,-153.03,0.00027743,7]
[423231459,1779963044000,-270.0455652,0.00027754,2]
[423231462,1779963044000,-153.0,0.00027791,30]
[423231465,1779963044000,-1463.94,0.00027872,2]
[423231460,1779963044000,-217.6,0.00027779,2]
[423231461,1779963044000,-153.03,0.00027791,30]
[423231466,1779963044000,-1464.91,0.00027872,2]
[423231464,1779963044000,-153.0,0.0002784,2]
[423231463,1779963044000,-153.03,0.0002784,2]
[423231468,1779963044000,-153.0,0.00027888,7]
[423231470,1779963044000,-604.57,0.00027892,30]
[423231471,1779963044000,-591.42,0.00027892,30]
[423231469,1779963044000,-1731.85,0.00027892,30]
[423231417,1779963044000,-594.43,0.00027397,2]
[423231446,1779963044000,-153.03,0.00027646,30]
[423231445,1779963044000,-500.0,0.00027604,60]
[423231457,1779963044000,-153.0,0.00027743,7]
[423231439,1779963044000,-1731.85,0.00027572,7]
[423231440,1779963044000,-604.57,0.00027572,7]
[423231410,1779963044000,-278.20173676,0.00027397,2]
[423231409,1779963044000,-8255.73588221,0.0002739,2]
[423231418,1779963044000,-1000.0,0.00027397,20]
[423231419,1779963044000,-5867.77,0.00027397,10]
[423231421,1779963044000,-300.0,0.00027397,2]
[423231422,1779963044000,-7634.63,0.00027397,10]
[423231420,1779963044000,-9161.55,0.00027397,10]
[423231429,1779963044000,-1844.28,0.0002752,7]
[423231430,1779963044000,-150.0,0.00027521,2]
[423231424,1779963044000,-179.40164934,0.00027397,7]
[423231426,1779963044000,-502.04,0.000274,14]
[423231423,1779963044000,-6362.19,0.00027397,10]
[423231412,1779963044000,-182.94356671,0.00027397,30]
[423231427,1779963044000,-211.56,0.000274,7]
[423231425,1779963044000,-500.0,0.00027398,7]
[423231438,1779963044000,-1464.91,0.0002755,30]
[423231441,1779963044000,-591.42,0.00027572,7]
[423231437,1779963044000,-153.0,0.0002755,2]
[423231436,1779963044000,-591.42,0.0002755,30]
[423231435,1779963044000,-1732.35,0.0002755,30]
[423231442,1779963044000,-1732.35,0.00027572,7]
[423231432,1779963044000,-153.03,0.0002755,2]
[423231433,1779963044000,-604.57,0.0002755,30]
[423231431,1779963044000,-1731.85,0.0002755,30]
[423231428,1779963044000,-494.59,0.000274,7]
[423231434,1779963044000,-1463.94,0.0002755,30]
[423231501,1779963045000,-494.59,0.000281,7]
[423231515,1779963045000,-169.13920586,0.00028665,2]
[423231510,1779963045000,-1788.96,0.00028346,7]
[423231512,1779963045000,-437.4,0.00028413,2]
[423231503,1779963045000,-153.12,0.0002813,2]
[423231519,1779963045000,-494.59,0.000288,7]
[423231509,1779963045000,-280.03725111,0.00028302,2]
[423231508,1779963045000,-200.0,0.00028302,2]
[423231507,1779963045000,-180.78937022,0.00028271,2]
[423231506,1779963045000,-2820.4,0.00028267,2]
[423231520,1779963045000,-200.0,0.0002885,2]
[423231516,1779963045000,-502.04,0.000287,14]
[423231513,1779963045000,-450.0,0.00028413,2]
[423231522,1779963045000,-150.0,0.00028897,2]
[423231518,1779963045000,-500.0,0.00028768,7]
[423231511,1779963045000,-152.0,0.00028378,3]
[423231514,1779963045000,-4140.0,0.00028463,7]
[423231517,1779963045000,-150.0,0.000287,30]
[423231523,1779963045000,-173.75807651,0.00028971,2]
[423231524,1779963045000,-276.59381558,0.00029,2]
[423231533,1779963045000,-215.50460005,0.00029,7]
[423231525,1779963045000,-151.0,0.00029,2]
[423231528,1779963045000,-1000.0,0.00029,2]
[423231527,1779963045000,-983.77,0.00029,2]
[423231532,1779963045000,-245.61,0.00029,7]
[423231530,1779963045000,-300.0,0.00029,3]
[423231500,1779963045000,-356.61535055,0.00028082,2]
[423231521,1779963045000,-169.95348819,0.0002885,2]
[423231504,1779963045000,-1463.94,0.00028194,7]
[423231472,1779963045000,-1732.35,0.00027892,30]
[423231502,1779963045000,-153.08,0.0002813,2]
[423231531,1779963045000,-315.0,0.00029,2]
[423231473,1779963045000,-153.03,0.00027936,30]
[423231478,1779963045000,-150.0,0.00027982,2]
[423231474,1779963045000,-153.0,0.00027936,30]
[423231484,1779963045000,-325.0,0.00028,2]
[423231477,1779963045000,-150.0,0.00027982,2]
[423231482,1779963045000,-153.0,0.00027985,2]
[423231481,1779963045000,-153.03,0.00027985,2]
[423231483,1779963045000,-564.68005363,0.00028,2]
[423231475,1779963045000,-150.0,0.00027982,2]
[423231476,1779963045000,-150.0,0.00027982,2]
[423231479,1779963045000,-150.0,0.00027982,2]
[423231480,1779963045000,-150.0,0.00027982,2]
[423231505,1779963045000,-1464.91,0.00028194,7]
[423231486,1779963045000,-153.03,0.00028033,7]
[423231487,1779963045000,-1463.94,0.00028033,30]
[423231485,1779963045000,-600.0,0.00028,2]
[423231488,1779963045000,-153.0,0.00028033,7]
[423231495,1779963045000,-153.0,0.00028081,30]
[423231491,1779963045000,-604.57,0.00028053,7]
[423231489,1779963045000,-1464.91,0.00028033,30]
[423231493,1779963045000,-1732.35,0.00028053,7]
[423231492,1779963045000,-591.42,0.00028053,7]
[423231490,1779963045000,-1731.85,0.00028053,7]
[423231494,1779963045000,-153.03,0.00028081,30]
[423231497,1779963045000,-150.0,0.00028082,2]
[423231498,1779963045000,-213.0,0.00028082,2]
[423231499,1779963045000,-302.46,0.00028082,2]
[423231496,1779963045000,-151.0,0.00028082,2]
[423231526,1779963045000,-379.0,0.00029,2]
[423231539,1779963045000,-512.85385847,0.00029248,60]
[423231545,1779963045000,-1000.0,0.00029673,2]
[423231559,1779963045000,-156.0,0.00029836,30]
[423231569,1779963045000,-928.0,0.00029921,2]
[423231575,1779963045000,-1225.0,0.00029921,2]
[423231572,1779963045000,-1356.0,0.00029921,2]
[423231574,1779963045000,-525.0,0.00029921,2]
[423231577,1779963045000,-169.43,0.0003,3]
[423231588,1779963045000,-157.11732528,0.00030006,7]
[423231587,1779963045000,-158.62994679,0.00030006,7]
[423231579,1779963045000,-502.04,0.0003,14]
[423231585,1779963045000,-2000.0,0.0003,7]
[423231576,1779963045000,-200.0,0.00029946,2]
[423231580,1779963045000,-151.0,0.0003,2]
[423231581,1779963045000,-400.0,0.0003,120]
[423231578,1779963045000,-169.44,0.0003,3]
[423231582,1779963045000,-10000.0,0.0003,30]
[423231583,1779963045000,-650.0,0.0003,2]
[423231584,1779963045000,-6012.86093432,0.0003,3]
[423231586,1779963045000,-338.27841171,0.00030006,2]
[423231590,1779963045000,-188.59,0.00030137,31]
[423231529,1779963045000,-212.93,0.00029,2]
[423231591,1779963045000,-594.43,0.00030137,2]
[423231589,1779963045000,-8269.6723416,0.00030137,2]
[423231595,1779963045000,-1851.44928516,0.00030137,2]
[423231596,1779963045000,-500.0,0.00030137,7]
[423231597,1779963045000,-420.0,0.00030144,3]
[423231594,1779963045000,-200.0,0.00030137,40]
[423231598,1779963045000,-1150.1326501,0.00030147,2]
[423231573,1779963045000,-1272.0,0.00029921,2]
[423231567,1779963045000,-1980.75330424,0.000299,2]
[423231592,1779963045000,-200.0,0.00030137,2]
[423231566,1779963045000,-161.0,0.00029837,30]
[423231570,1779963045000,-3549.0,0.00029921,2]
[423231535,1779963045000,-161.37,0.00029,2]
[423231534,1779963045000,-509.0,0.00029,2]
[423231536,1779963045000,-5162.64,0.00029,7]
[423231542,1779963045000,-494.59,0.000296,7]
[423231537,1779963045000,-1733.63,0.00029172,7]
[423231593,1779963045000,-1003.83,0.00030137,2]
[423231540,1779963045000,-644.79446245,0.00029395,2]
[423231541,1779963045000,-200.0,0.00029398,2]
[423231544,1779963045000,-1000.0,0.00029673,2]
[423231543,1779963045000,-473.8,0.0002964,10]
[423231546,1779963045000,-1000.0,0.00029673,2]
[423231547,1779963045000,-1000.0,0.00029673,2]
[423231557,1779963045000,-403.0,0.00029836,30]
[423231538,1779963045000,-330.0,0.00029184,12]
[423231549,1779963045000,-1000.0,0.000297,7]
[423231550,1779963045000,-482.45595626,0.0002976,2]
[423231564,1779963045000,-155.0,0.00029837,30]
[423231568,1779963045000,-150.0,0.00029921,2]
[423231560,1779963045000,-214.0,0.00029836,30]
[423231558,1779963045000,-1220.0,0.00029836,30]
[423231555,1779963045000,-1136.0,0.00029836,30]
[423231562,1779963045000,-968.0,0.00029837,30]
[423231548,1779963045000,-1000.0,0.00029673,2]
[423231552,1779963045000,-2034.0,0.0002982,30]
[423231551,1779963045000,-3637.0,0.00029791,2]
[423231554,1779963045000,-180.0,0.0002982,30]
[423231553,1779963045000,-379.0,0.0002982,30]
[423231556,1779963045000,-159.0,0.00029836,30]
[423231623,1779963046000,-507.41761757,0.00030899,2]
[423231625,1779963046000,-317.25989357,0.00030899,7]
[423231627,1779963046000,-236.03997921,0.00030899,2]
[423231626,1779963046000,-209.47211281,0.00030899,2]
[423231628,1779963046000,-314.23465056,0.00030899,7]
[423231630,1779963046000,-494.59,0.00031,7]
[423231629,1779963046000,-266.98254115,0.000309,7]
[423231634,1779963046000,-502.04,0.000314,14]
[423231631,1779963046000,-245.61,0.00031,7]
[423231640,1779963046000,-168.49527317,0.00031466,7]
[423231632,1779963046000,-200.0,0.00031096,2]
[423231636,1779963046000,-424.54838216,0.00031438,2]
[423231635,1779963046000,-20231.97016459,0.0003143,4]
[423231638,1779963046000,-511.88077166,0.00031459,2]
[423231637,1779963046000,-304.60995489,0.00031459,7]
[423231641,1779963046000,-306.03432427,0.00031485,7]
[423231639,1779963046000,-244.64219698,0.00031459,7]
[423231642,1779963046000,-676.55682342,0.00031495,2]
[423231624,1779963046000,-285.4477405,0.00030899,7]
[423231633,1779963046000,-587.0,0.00031333,3]
[423231622,1779963046000,-153.01716213,0.00030889,7]
[423231607,1779963046000,-309.98906472,0.000307,30]
[423231620,1779963046000,-161.0,0.00030837,30]
[423231601,1779963046000,-173.75807651,0.00030275,2]
[423231600,1779963046000,-1678.3,0.00030272,7]
[423231599,1779963046000,-2820.4,0.00030239,2]
[423231603,1779963046000,-150.0,0.00030341,2]
[423231604,1779963046000,-199.24,0.00030411,120]
[423231605,1779963046000,-1108.9892261,0.0003045,3]
[423231608,1779963046000,-5162.64,0.00030731,7]
[423231614,1779963046000,-403.0,0.00030836,30]
[423231602,1779963046000,-494.59,0.000303,7]
[423231621,1779963046000,-255.94038583,0.00030863,2]
[423231606,1779963046000,-213.54315359,0.00030494,2]
[423231613,1779963046000,-159.0,0.00030836,30]
[423231610,1779963046000,-379.0,0.0003082,30]
[423231611,1779963046000,-180.0,0.0003082,30]
[423231612,1779963046000,-1136.0,0.00030836,30]
[423231616,1779963046000,-156.0,0.00030836,30]
[423231618,1779963046000,-968.0,0.00030837,30]
[423231615,1779963046000,-1220.0,0.00030836,30]
[423231617,1779963046000,-214.0,0.00030836,30]
[423231619,1779963046000,-155.0,0.00030837,30]
[423231609,1779963046000,-2034.0,0.0003082,30]
[423231643,1779963046000,-164.94429335,0.00031495,2]
[423231644,1779963046000,-247.30096283,0.00031495,7]
[423231649,1779963046000,-260.98978807,0.00031495,2]
[423231673,1779963046000,-168.03431567,0.00032,120]
[423231675,1779963046000,-428.21960381,0.00032,120]
[423231672,1779963046000,-150.0,0.00031858,2]
[423231674,1779963046000,-301.19770126,0.00032,120]
[423231676,1779963046000,-261.83667085,0.00032,120]
[423231677,1779963046000,-496.18181317,0.00032,120]
[423231679,1779963046000,-170.59116884,0.00032,120]
[423231680,1779963046000,-240.05184697,0.00032,120]
[423231681,1779963046000,-164.14305202,0.00032,120]
[423231678,1779963046000,-174.84515845,0.00032,120]
[423231682,1779963046000,-165.54796298,0.00032,120]
[423231683,1779963046000,-494.59,0.00032,7]
[423231685,1779963046000,-200.0,0.00032055,2]
[423231690,1779963046000,-151.0,0.000322,2]
[423231689,1779963046000,-724.13695674,0.00032134,2]
[423231687,1779963046000,-845.69602928,0.00032091,2]
[423231691,1779963046000,-2820.4,0.0003221,5]
[423231693,1779963046000,-152.0,0.00032217,4]
[423231645,1779963046000,-171.47699907,0.00031495,7]
[423231667,1779963046000,-156.0,0.00031836,30]
[423231664,1779963046000,-159.0,0.00031836,30]
[423231684,1779963046000,-700.0,0.00032,2]
[423231669,1779963046000,-968.0,0.00031837,30]
[423231646,1779963046000,-570.89548099,0.00031495,7]
[423231666,1779963046000,-1220.0,0.00031836,30]
[423231647,1779963046000,-475.88984036,0.00031495,7]
[423231650,1779963046000,-418.94422562,0.00031495,2]
[423231651,1779963046000,-472.07995843,0.00031495,2]
[423231654,1779963046000,-533.9650823,0.00031495,7]
[423231653,1779963046000,-471.35197584,0.00031495,7]
[423231655,1779963046000,-500.0,0.00031507,7]
[423231658,1779963046000,-211.56,0.000317,7]
[423231659,1779963046000,-2034.0,0.0003182,30]
[423231652,1779963046000,-168.76782053,0.00031495,2]
[423231660,1779963046000,-379.0,0.0003182,30]
[423231656,1779963046000,-173.75807651,0.00031578,2]
[423231661,1779963046000,-180.0,0.0003182,30]
[423231662,1779963046000,-266.79,0.00031827,120]
[423231670,1779963046000,-155.0,0.00031837,30]
[423231665,1779963046000,-403.0,0.00031836,30]
[423231663,1779963046000,-1136.0,0.00031836,30]
[423231657,1779963046000,-1622.97,0.00031648,7]
[423231671,1779963046000,-161.0,0.00031837,30]
[423231668,1779963046000,-214.0,0.00031836,30]
[423231758,1779963047000,-350.0,0.00033014,5]
[423231751,1779963047000,-496.18181317,0.00033,120]
[423231752,1779963047000,-174.84515845,0.00033,120]
[423231747,1779963047000,-681.41605727,0.00033,3]
[423231748,1779963047000,-168.03431567,0.00033,120]
[423231745,1779963047000,-1083.96292297,0.00033,30]
[423231749,1779963047000,-428.21960381,0.00033,120]
[423231744,1779963047000,-352.9718208,0.00033,120]
[423231742,1779963047000,-525.0,0.00032921,2]
[423231756,1779963047000,-215.50460005,0.00033,3]
[423231743,1779963047000,-500.0,0.00032999,120]
[423231750,1779963047000,-261.83667085,0.00033,120]
[423231762,1779963047000,-330.0,0.00033346,29]
[423231764,1779963047000,-1500.0,0.000334,7]
[423231755,1779963047000,-165.54796298,0.00033,120]
[423231757,1779963047000,-573.019587,0.00033,14]
[423231761,1779963047000,-2000.0,0.00033333,7]
[423231760,1779963047000,-151.0,0.000333,2]
[423231759,1779963047000,-245.61,0.000331,7]
[423231753,1779963047000,-170.59116884,0.00033,120]
[423231754,1779963047000,-164.14305202,0.00033,120]
[423231765,1779963047000,-150.0,0.00033451,2]
[423231775,1779963047000,-403.0,0.00033836,30]
[423231767,1779963047000,-1845.2133139,0.00033516,2]
[423231770,1779963047000,-2034.0,0.0003382,30]
[423231746,1779963047000,-23413.06141401,0.00033,3]
[423231763,1779963047000,-163.57588558,0.00033381,2]
[423231740,1779963047000,-1356.0,0.00032921,2]
[423231712,1779963047000,-159.0,0.00032836,30]
[423231738,1779963047000,-928.0,0.00032921,2]
[423231771,1779963047000,-379.0,0.0003382,30]
[423231695,1779963047000,-4140.0,0.00032463,7]
[423231697,1779963047000,-5162.64,0.00032519,7]
[423231700,1779963047000,-3196.97,0.0003271,2]
[423231698,1779963047000,-823.0,0.00032569,3]
[423231702,1779963047000,-3637.0,0.00032791,2]
[423231704,1779963047000,-2034.0,0.0003282,30]
[423231706,1779963047000,-379.0,0.0003282,30]
[423231716,1779963047000,-1220.0,0.00032836,30]
[423231714,1779963047000,-403.0,0.00032836,30]
[423231708,1779963047000,-180.0,0.0003282,30]
[423231710,1779963047000,-1136.0,0.00032836,30]
[423231741,1779963047000,-1272.0,0.00032921,2]
[423231720,1779963047000,-214.0,0.00032836,30]
[423231722,1779963047000,-968.0,0.00032837,30]
[423231725,1779963047000,-155.0,0.00032837,30]
[423231729,1779963047000,-350.67,0.00032877,2]
[423231727,1779963047000,-161.0,0.00032837,30]
[423231731,1779963047000,-594.43,0.00032877,2]
[423231735,1779963047000,-299.9,0.00032877,2]
[423231736,1779963047000,-348.025554,0.00032877,7]
[423231732,1779963047000,-167.46223961,0.00032877,2]
[423231739,1779963047000,-3549.0,0.00032921,2]
[423231734,1779963047000,-188.61,0.00032877,120]
[423231733,1779963047000,-1000.0,0.00032877,30]
[423231737,1779963047000,-173.75807651,0.00032882,2]
[423231718,1779963047000,-156.0,0.00032836,30]
[423231766,1779963047000,-594.6841404,0.00033507,2]
[423231784,1779963047000,-428.21960381,0.000339,120]
[423231768,1779963047000,-256.6292824,0.00033527,2]
[423231808,1779963047000,-1500.0,0.00034795,2]
[423231806,1779963047000,-150.0,0.00034644,7]
[423231809,1779963047000,-2034.0,0.0003482,30]
[423231805,1779963047000,-150.0,0.00034644,7]
[423231803,1779963047000,-150.0,0.00034644,7]
[423231804,1779963047000,-150.0,0.00034644,7]
[423231802,1779963047000,-150.0,0.00034644,7]
[423231812,1779963047000,-1136.0,0.00034836,30]
[423231815,1779963047000,-1220.0,0.00034836,30]
[423231819,1779963047000,-155.0,0.00034837,30]
[423231816,1779963047000,-156.0,0.00034836,30]
[423231821,1779963047000,-150.0,0.00034919,7]
[423231807,1779963047000,-150.0,0.00034644,7]
[423231813,1779963047000,-159.0,0.00034836,30]
[423231820,1779963047000,-161.0,0.00034837,30]
[423231822,1779963047000,-350.0,0.00034931,5]
[423231811,1779963047000,-180.0,0.0003482,30]
[423231818,1779963047000,-968.0,0.00034837,30]
[423231817,1779963047000,-214.0,0.00034836,30]
[423231823,1779963047000,-719.65219289,0.00035,31]
[423231826,1779963047000,-26301.05729991,0.00035,2]
[423231825,1779963047000,-10217.19031703,0.00035,120]
[423231824,1779963047000,-340000.0,0.00035,4]
[423231827,1779963047000,-4744.68001902,0.00035,30]
[423231828,1779963047000,-186.66299449,0.00035,2]
[423231769,1779963047000,-1567.64,0.00033575,30]
[423231814,1779963047000,-403.0,0.00034836,30]
[423231810,1779963047000,-379.0,0.0003482,30]
[423231830,1779963047000,-151.0,0.00035,2]
[423231801,1779963047000,-150.0,0.00034644,7]
[423231774,1779963047000,-159.0,0.00033836,30]
[423231772,1779963047000,-180.0,0.0003382,30]
[423231773,1779963047000,-1136.0,0.00033836,30]
[423231776,1779963047000,-1220.0,0.00033836,30]
[423231787,1779963047000,-170.59116884,0.000339,120]
[423231777,1779963047000,-156.0,0.00033836,30]
[423231779,1779963047000,-968.0,0.00033837,30]
[423231800,1779963047000,-9298.36,0.00034544,60]
[423231778,1779963047000,-214.0,0.00033836,30]
[423231786,1779963047000,-496.18181317,0.000339,120]
[423231780,1779963047000,-155.0,0.00033837,30]
[423231782,1779963047000,-816.0,0.00033853,3]
[423231783,1779963047000,-168.03431567,0.000339,120]
[423231781,1779963047000,-161.0,0.00033837,30]
[423231829,1779963047000,-290.83666419,0.00035,120]
[423231799,1779963047000,-665.35,0.00034544,60]
[423231785,1779963047000,-261.83667085,0.000339,120]
[423231792,1779963047000,-43001.14048336,0.00034,6]
[423231795,1779963047000,-173.75807649,0.00034186,2]
[423231793,1779963047000,-750.0,0.00034,2]
[423231790,1779963047000,-350.0,0.00033973,5]
[423231796,1779963047000,-1806.68,0.00034247,30]
[423231794,1779963047000,-2820.4,0.00034182,7]
[423231788,1779963047000,-164.14305202,0.000339,120]
[423231797,1779963047000,-5162.64,0.00034308,14]
[423231798,1779963047000,-1434.86,0.00034544,60]
[423231789,1779963047000,-165.54796298,0.000339,120]
[423231791,1779963047000,-5155.55808067,0.00034,3]
[423231868,1779963048000,-1000.0,0.00035616,10]
[423231870,1779963048000,-1000.0,0.00035616,10]
[423231871,1779963048000,-1000.0,0.00035616,10]
[423231867,1779963048000,-1000.0,0.00035616,10]
[423231864,1779963048000,-243.33833534,0.00035616,7]
[423231863,1779963048000,-150.0,0.00035616,2]
[423231865,1779963048000,-1000.0,0.00035616,10]
[423231866,1779963048000,-1000.0,0.00035616,10]
[423231862,1779963048000,-189.56508802,0.00035616,2]